fUSD/lending_fUSD_20250911
["ID","MTS","AMOUNT","RATE_DAILY","PERIOD"]
[384935502,1757628639808,-400.0,0.00027397,7]
[384935504,1757628639819,-543.92197175,0.00027397,7]
[384935506,1757628639829,-400.0,0.00027397,7]
[384935508,1757628639838,-477.37,0.00027397,7]
[384935510,1757628639850,-400.0,0.00027397,7]
[384935512,1757628639862,-1406.16,0.00027397,7]
[384935514,1757628639871,-400.0,0.00027397,7]
[384935515,1757628639881,-400.0,0.00027397,7]
[384935518,1757628639892,-400.0,0.00027397,7]
[384935519,1757628639901,-400.0,0.00027397,7]
[384935521,1757628639911,-1132.77,0.00027397,7]
[384935523,1757628639920,-612.15,0.00027397,7]
[384935526,1757628639930,-1476.31,0.00027397,7]
[384935527,1757628639939,-400.0,0.00027397,7]
[384935529,1757628639948,-400.0,0.00027397,7]
[384935531,1757628639957,-792.22,0.00027397,7]
[384935534,1757628639966,-400.0,0.00027397,7]
[384935535,1757628639975,-655.81,0.00027397,7]
[384935536,1757628639984,-400.0,0.00027397,7]
[384935538,1757628639993,-1099.38,0.00027397,7]
[384935539,1757628640003,-575.99,0.00027397,7]
[384935541,1757628640012,-851.99,0.00027397,7]
[384935543,1757628640021,-400.0,0.00027397,7]
[384935545,1757628640030,-400.0,0.00027397,7]
[384935547,1757628640040,-402.96,0.00027397,7]
[384935549,1757628640049,-400.0,0.00027397,7]
[384935551,1757628640058,-400.0,0.00027397,7]
[384935553,1757628640067,-692.22,0.00027397,7]
[384935555,1757628640076,-400.0,0.00027397,7]
[384935557,1757628640085,-400.0,0.00027397,7]
[384935559,1757628640094,-902.81,0.00027397,7]
[384935561,1757628640106,-400.0,0.00027397,7]
[384935563,1757628640115,-400.0,0.00027397,7]
[384935565,1757628640124,-400.0,0.00027397,7]
[384935567,1757628640133,-400.0,0.00027397,7]
[384935569,1757628640142,-502.98,0.00027397,7]
[384935571,1757628640151,-400.0,0.00027397,7]
[384935573,1757628640160,-400.0,0.00027397,7]
[384935574,1757628640170,-1504.18,0.00027397,7]
[384935576,1757628640179,-400.0,0.00027397,7]
[384935578,1757628640188,-400.0,0.00027397,7]
[384935580,1757628640198,-1119.02,0.00027397,7]
[384935582,1757628640207,-400.0,0.00027397,7]
[384935584,1757628640216,-400.0,0.00027397,7]
[384935586,1757628640225,-400.0,0.00027397,7]
[384935588,1757628640234,-1097.07,0.00027397,7]
[384935590,1757628640243,-400.0,0.00027397,7]
[384935592,1757628640252,-1079.98,0.00027397,7]
[384935594,1757628640262,-400.0,0.00027397,7]
[384935596,1757628640271,-400.0,0.00027397,7]
[384935598,1757628640280,-400.0,0.00027397,7]
[384935600,1757628640288,-676.04,0.00027397,7]
[384935602,1757628640297,-584.91,0.00027397,7]
[384935604,1757628640306,-400.0,0.00027397,7]
[384935606,1757628640315,-903.94,0.00027397,7]
[384935608,1757628640324,-584.91,0.00027397,7]
[384935610,1757628640333,-927.99,0.00027397,7]
[384935612,1757628640342,-584.91,0.00027397,7]
[384935614,1757628640353,-584.91,0.00027397,7]
[384935616,1757628640362,-584.91,0.00027397,7]
[384935618,1757628640371,-584.91,0.00027397,7]
[384935620,1757628640380,-584.91,0.00027397,7]
[384935622,1757628640389,-400.0,0.00027397,7]
[384935624,1757628640399,-584.91,0.00027397,7]
[384935625,1757628640408,-400.0,0.00027397,7]
[384935627,1757628640417,-400.0,0.00027397,7]
[384935629,1757628640426,-1063.1,0.00027397,7]
[384935631,1757628640435,-1017.26,0.00027397,7]
[384935633,1757628640444,-400.0,0.00027397,7]
[384935635,1757628640453,-1061.25,0.00027397,7]
[384935637,1757628640462,-400.0,0.00027397,7]
[384935639,1757628640471,-400.0,0.00027397,7]
[384935641,1757628640480,-400.0,0.00027397,7]
[384935643,1757628640489,-767.45,0.00027397,7]
[384935645,1757628640498,-400.0,0.00027397,7]
[384935647,1757628640506,-400.0,0.00027397,7]
[384935649,1757628640515,-424.83127354,0.00027397,7]
[384935651,1757628640524,-1238.69,0.00027397,7]
[384935653,1757628640534,-400.0,0.00027397,7]
[384935655,1757628640543,-919.99,0.00027397,7]
[384935657,1757628640552,-400.0,0.00027397,7]
[384935659,1757628640562,-400.0,0.00027397,7]
[384935661,1757628640571,-400.0,0.00027397,7]
[384935663,1757628640580,-400.0,0.00027397,7]
[384935665,1757628640590,-400.0,0.00027397,7]
[384935667,1757628640599,-400.0,0.00027397,7]
[384935669,1757628640609,-400.0,0.00027397,7]
[384935671,1757628640618,-619.86,0.00027397,7]
[384935673,1757628640627,-830.71,0.00027397,7]
[384935675,1757628640636,-400.0,0.00027397,7]
[384935677,1757628640645,-400.0,0.00027397,7]
[384935679,1757628640654,-400.0,0.00027397,7]
[384935681,1757628640663,-1300.71,0.00027397,7]
[384935683,1757628640672,-400.0,0.00027397,7]
[384935685,1757628640681,-400.0,0.00027397,7]
[384935687,1757628640690,-400.0,0.00027397,7]
[384935689,1757628640699,-1326.45,0.00027397,7]
[384935691,1757628640708,-1111.01,0.00027397,7]
[384935693,1757628640717,-516.79,0.00027397,7]
[384935695,1757628640726,-163.438847,0.00027397,7]
[384935697,1757628640737,-1241.95,0.00027397,7]
[384935699,1757628640746,-400.0,0.00027397,7]
[384935701,1757628640755,-404.02081807,0.00027397,7]
[384935702,1757628640765,-500.0,0.00027397,2]
[384935704,1757628640774,-445.7,0.00027397,7]
[384935706,1757628640783,-400.0,0.00027397,7]
[384935708,1757628640792,-400.0,0.00027397,7]
[384935710,1757628640802,-525.3,0.00027397,7]
[384935712,1757628640814,-162.058167,0.00027397,7]
[384935714,1757628640823,-649.58,0.00027397,7]
[384935716,1757628640832,-400.0,0.00027397,7]
[384935718,1757628640841,-400.0,0.00027397,7]
[384935720,1757628640852,-544.73,0.00027397,7]
[384935722,1757628640861,-300.0,0.00027397,7]
[384935724,1757628640870,-400.0,0.00027397,7]
[384935726,1757628640879,-400.0,0.00027397,7]
[384935728,1757628640890,-400.0,0.00027397,7]
[384935730,1757628640899,-400.0,0.00027397,7]
[384935732,1757628640908,-400.0,0.00027397,7]
[384935734,1757628640917,-779.59,0.00027397,7]
[384935736,1757628640926,-400.0,0.00027397,7]
[384935738,1757628640935,-400.0,0.00027397,7]
[384935740,1757628640944,-400.0,0.00027397,7]
[384935742,1757628640953,-1172.23,0.00027397,7]
[384935744,1757628640962,-400.0,0.00027397,7]
[384935746,1757628640971,-534.61,0.00027397,7]
[384935748,1757628640981,-400.0,0.00027397,7]
[384935750,1757628640990,-400.0,0.00027397,7]
[384935752,1757628640999,-400.0,0.00027397,7]
[384935754,1757628641008,-400.0,0.00027397,7]
[384935756,1757628641017,-841.79,0.00027397,7]
[384935758,1757628641026,-1611.52,0.00027397,7]
[384935760,1757628641035,-948.84,0.00027397,7]
[384935762,1757628641044,-400.0,0.00027397,7]
[384935764,1757628641054,-400.0,0.00027397,7]
[384935766,1757628641063,-400.0,0.00027397,7]
[384935768,1757628641072,-400.0,0.00027397,7]
[384935770,1757628641082,-1133.05,0.00027397,7]
[384935772,1757628641091,-1032.84,0.00027397,7]
[384935774,1757628641100,-400.0,0.00027397,7]
[384935776,1757628641110,-1001.67,0.00027397,7]
[384935778,1757628641119,-400.0,0.00027397,7]
[384935780,1757628641127,-400.0,0.00027397,7]
[384935782,1757628641136,-400.0,0.00027397,7]
[384935784,1757628641145,-400.0,0.00027397,7]
[384935786,1757628641154,-1394.47,0.00027397,7]
[384935788,1757628641163,-613.36,0.00027397,7]
[384935790,1757628641172,-400.0,0.00027397,7]
[384935792,1757628641181,-481.76,0.00027397,7]
[384935794,1757628641191,-400.0,0.00027397,7]
[384935796,1757628641201,-400.0,0.00027397,7]
[384935798,1757628641210,-630.37,0.00027397,7]
[384935800,1757628641219,-999.59,0.00027397,7]
[384935802,1757628641228,-205.90804498,0.00027397,7]
[384935804,1757628641238,-400.0,0.00027397,7]
[384935806,1757628641247,-400.0,0.00027397,7]
[384935808,1757628641255,-400.0,0.00027397,7]
[384935810,1757628641264,-400.0,0.00027397,7]
[384935812,1757628641273,-400.0,0.00027397,7]
[384935814,1757628641283,-400.0,0.00027397,7]
[384935815,1757628641292,-1276.95,0.00027397,7]
[384935818,1757628641301,-400.0,0.00027397,7]
[384935820,1757628641311,-400.0,0.00027397,7]
[384935822,1757628641320,-507.76181427,0.00027397,7]
[384935823,1757628641330,-533.17,0.00027397,7]
[384935825,1757628641339,-739.44,0.00027397,7]
[384935827,1757628641348,-277.97549125,0.00027397,7]
[384935829,1757628641359,-400.0,0.00027397,7]
[384935832,1757628641368,-400.0,0.00027397,7]
[384935834,1757628641378,-400.0,0.00027397,7]
[384935836,1757628641387,-1190.19,0.00027397,7]
[384935837,1757628641396,-866.75,0.00027397,7]
[384935839,1757628641405,-400.0,0.00027397,7]
[384935842,1757628641415,-400.0,0.00027397,7]
[384935844,1757628641424,-400.0,0.00027397,7]
[384935845,1757628641433,-400.0,0.00027397,7]
[384935848,1757628641444,-400.0,0.00027397,7]
[384935849,1757628641453,-330.31206961,0.00027397,7]
[384935852,1757628641463,-1159.69,0.00027397,7]
[384935854,1757628641473,-599.07,0.00027397,7]
[384935856,1757628641482,-504.3,0.00027397,7]
[384935858,1757628641491,-400.0,0.00027397,7]
[384935860,1757628641501,-359.33122292,0.00027397,7]
[384935862,1757628641510,-1215.96,0.00027397,7]
[384935863,1757628641519,-400.0,0.00027397,7]
[384935864,1757628641528,-804.0,0.00027397,7]
[384935865,1757628641537,-400.0,0.00027397,7]
[384935866,1757628641547,-400.0,0.00027397,7]
[384935867,1757628641555,-874.6,0.00027397,7]
[384935868,1757628641565,-400.0,0.00027397,7]
[384935869,1757628641574,-400.0,0.00027397,7]
[384935870,1757628641583,-544.04,0.00027397,7]
[384935871,1757628641592,-1007.34,0.00027397,7]
[384935872,1757628641601,-400.0,0.00027397,7]
[384935874,1757628641617,-705.58,0.00027397,7]
[384935876,1757628641631,-400.0,0.00027397,7]
[384935878,1757628641640,-400.0,0.00027397,7]
[384935880,1757628641650,-400.0,0.00027397,7]
[384935882,1757628641660,-400.0,0.00027397,7]
[384935884,1757628641670,-400.0,0.00027397,7]
[384935886,1757628641680,-1390.78,0.00027397,7]
[384935888,1757628641690,-400.0,0.00027397,7]
[384935890,1757628641699,-400.0,0.00027397,7]
[384935892,1757628641708,-400.0,0.00027397,7]
[384935894,1757628641718,-502.96,0.00027397,7]
[384935896,1757628641728,-400.0,0.00027397,7]
[384935898,1757628641737,-400.0,0.00027397,7]
[384935900,1757628641746,-400.0,0.00027397,7]
[384935902,1757628641755,-1229.85,0.00027397,7]
[384935904,1757628641766,-1100.82,0.00027397,7]
[384935906,1757628641776,-401.06,0.00027397,7]
[384935908,1757628641786,-400.0,0.00027397,7]
[384935910,1757628641795,-400.0,0.00027397,7]
[384935912,1757628641809,-159.342316,0.00027397,7]
[384935914,1757628641819,-400.0,0.00027397,7]
[384935916,1757628641828,-577.87,0.00027397,7]
[384935918,1757628641838,-400.0,0.00027397,7]
[384935920,1757628641848,-400.0,0.00027397,7]
[384935922,1757628641860,-400.0,0.00027397,7]
[384935924,1757628641870,-1190.41,0.00027397,7]
[384935926,1757628641883,-400.0,0.00027397,7]
[384935928,1757628641892,-400.0,0.00027397,7]
[384935930,1757628641902,-152.328201,0.00027397,7]
[384935932,1757628641911,-1180.24,0.00027397,7]
[384935934,1757628641921,-400.0,0.00027397,7]
[384935936,1757628641930,-400.0,0.00027397,7]
[384935938,1757628641939,-1332.83,0.00027397,7]
[384935940,1757628641949,-538.77,0.00027397,7]
[384935942,1757628641958,-191.398884,0.00027397,7]
[384935944,1757628641968,-400.0,0.00027397,7]
[384935946,1757628641977,-499.11,0.00027397,7]
[384935948,1757628641987,-400.0,0.00027397,7]
[384935950,1757628641996,-400.0,0.00027397,7]
[384935952,1757628642006,-400.0,0.00027397,7]
[384935954,1757628642015,-400.0,0.00027397,7]
[384935956,1757628642025,-400.0,0.00027397,7]
[384935958,1757628642034,-898.21,0.00027397,7]
[384935960,1757628642044,-429.72,0.00027397,7]
[384935962,1757628642053,-798.71,0.00027397,7]
[384935964,1757628642063,-651.22,0.00027397,7]
[384935966,1757628642072,-400.0,0.00027397,7]
[384935968,1757628642082,-400.0,0.00027397,7]
[384935970,1757628642091,-400.0,0.00027397,7]
[384935972,1757628642101,-1292.56,0.00027397,7]
[384935974,1757628642111,-400.0,0.00027397,7]
[384935976,1757628642120,-951.42,0.00027397,7]
[384935978,1757628642129,-416.25,0.00027397,7]
[384935980,1757628642139,-836.15,0.00027397,7]
[384935982,1757628642148,-400.0,0.00027397,7]
[384935984,1757628642157,-400.0,0.00027397,7]
[384935986,1757628642166,-500.0,0.00027397,7]
[384935988,1757628642175,-500.0,0.00027397,7]
[384935990,1757628642185,-500.0,0.00027397,7]
[384935992,1757628642195,-500.0,0.00027397,7]
[384935994,1757628642204,-400.0,0.00027397,7]
[384935996,1757628642214,-400.0,0.00027397,7]
[384935999,1757628642223,-400.0,0.00027397,7]
[384936001,1757628642233,-400.0,0.00027397,7]
[384936003,1757628642242,-2179.55,0.00027397,7]
[384936005,1757628642251,-400.0,0.00027397,7]
[384936007,1757628642260,-400.0,0.00027397,7]
[384936009,1757628642270,-400.0,0.00027397,7]
[384936011,1757628642279,-988.37,0.00027397,7]
[384936013,1757628642288,-782.33,0.00027397,7]
[384936015,1757628642297,-1070.21,0.00027397,7]
[384936017,1757628642306,-3486.0,0.00027397,7]
[384936019,1757628642315,-1055.95,0.00027397,7]
[384936021,1757628642325,-419.41510248,0.00027397,7]
[384936023,1757628642334,-677.64,0.00027397,7]
[384936025,1757628642343,-400.0,0.00027397,7]
[384936027,1757628642353,-906.07,0.00027397,7]
[384936029,1757628642362,-430.87,0.00027397,7]
[384936031,1757628642372,-500.0,0.00027397,7]
[384936033,1757628642382,-500.0,0.00027397,7]
[384936035,1757628642392,-500.0,0.00027397,7]
[384936037,1757628642401,-400.0,0.00027397,7]
[384936039,1757628642411,-500.0,0.00027397,7]
[384936041,1757628642420,-400.0,0.00027397,7]
[384936043,1757628642429,-400.0,0.00027397,7]
[384936045,1757628642439,-640.02,0.00027397,7]
[384936047,1757628642448,-400.0,0.00027397,7]
[384936049,1757628642457,-400.0,0.00027397,7]
[384936051,1757628642467,-1000.0,0.00027397,7]
[384936053,1757628642476,-400.0,0.00027397,7]
[384936055,1757628642485,-1385.79,0.00027397,7]
[384936057,1757628642495,-1788.38,0.00027397,7]
[384936059,1757628642505,-400.0,0.00027397,7]
[384936061,1757628642514,-1110.31,0.00027397,7]
[384936063,1757628642525,-400.0,0.00027397,7]
[384936065,1757628642535,-1088.44,0.00027397,7]
[384936067,1757628642544,-1091.49,0.00027397,7]
[384936069,1757628642554,-613.26,0.00027397,7]
[384936071,1757628642564,-400.0,0.00027397,7]
[384936073,1757628642573,-400.0,0.00027397,7]
[384936075,1757628642583,-400.0,0.00027397,7]
[384936077,1757628642593,-400.0,0.00027397,7]
[384936079,1757628642602,-1447.38,0.00027397,7]
[384936081,1757628642612,-400.0,0.00027397,7]
[384936083,1757628642622,-400.0,0.00027397,7]
[384936085,1757628642632,-500.0,0.00027397,7]
[384936087,1757628642641,-500.0,0.00027397,7]
[384936089,1757628642651,-500.0,0.00027397,7]
[384936091,1757628642661,-500.0,0.00027397,7]
[384936093,1757628642670,-400.0,0.00027397,7]
[384936095,1757628642680,-1538.44,0.00027397,7]
[384936097,1757628642689,-400.0,0.00027397,7]
[384936099,1757628642699,-400.0,0.00027397,7]
[384936101,1757628642708,-747.13,0.00027397,7]
[384936103,1757628642717,-400.0,0.00027397,7]
[384936105,1757628642727,-400.0,0.00027397,7]
[384936107,1757628642736,-400.0,0.00027397,7]
[384936109,1757628642746,-400.0,0.00027397,7]
[384936111,1757628642755,-400.0,0.00027397,7]
[384936113,1757628642765,-437.22201965,0.00027397,7]
[384936115,1757628642774,-1032.38,0.00027397,7]
[384936117,1757628642784,-400.0,0.00027397,7]
[384936119,1757628642793,-407.89562842,0.00027397,7]
[384936121,1757628642803,-400.0,0.00027397,7]
[384936123,1757628642813,-1089.75,0.00027397,7]
[384936125,1757628642826,-300.0,0.00027397,7]
[384936127,1757628642835,-400.0,0.00027397,7]
[384936129,1757628642845,-400.0,0.00027397,7]
[384936131,1757628642855,-400.0,0.00027397,7]
[384936133,1757628642867,-400.0,0.00027397,7]
[384936135,1757628642876,-1352.04,0.00027397,7]
[384936137,1757628642885,-482.52,0.00027397,7]
[384936139,1757628642896,-400.0,0.00027397,7]
[384936141,1757628642905,-1027.98,0.00027397,7]
[384936143,1757628642915,-400.0,0.00027397,7]
[384936145,1757628642924,-400.0,0.00027397,7]
[384936147,1757628642933,-420.52,0.00027397,7]
[384936149,1757628642942,-400.0,0.00027397,7]
[384936151,1757628642951,-1086.78,0.00027397,7]
[384936153,1757628642960,-400.0,0.00027397,7]
[384936155,1757628642969,-734.16,0.00027397,7]
[384936157,1757628642978,-941.02,0.00027397,7]
[384936159,1757628642988,-1610.21,0.00027397,7]
[384936161,1757628642997,-856.35,0.00027397,7]
[384936163,1757628643006,-708.64,0.00027397,7]
[384936165,1757628643016,-1621.79,0.00027397,7]
[384936167,1757628643025,-400.0,0.00027397,7]
[384936169,1757628643034,-400.0,0.00027397,7]
[384936171,1757628643044,-400.0,0.00027397,7]
[384936173,1757628643053,-400.0,0.00027397,7]
[384936175,1757628643063,-400.0,0.00027397,7]
[384936177,1757628643072,-1006.55,0.00027397,7]
[384936179,1757628643081,-1106.64,0.00027397,7]
[384936181,1757628643091,-400.0,0.00027397,7]
[384936183,1757628643102,-413.93,0.00027397,7]
[384936185,1757628643111,-624.48,0.00027397,7]
[384936187,1757628643120,-400.0,0.00027397,7]
[384936189,1757628643130,-400.0,0.00027397,7]
[384936191,1757628643140,-400.0,0.00027397,7]
[384936194,1757628643149,-400.0,0.00027397,7]
[384936197,1757628643159,-400.0,0.00027397,7]
[384936200,1757628643169,-400.0,0.00027397,7]
[384936202,1757628643179,-1341.46,0.00027397,7]
[384936205,1757628643189,-400.0,0.00027397,7]
[384936207,1757628643201,-1021.67,0.00027397,7]
[384936210,1757628643211,-400.0,0.00027397,7]
[384936212,1757628643220,-400.0,0.00027397,7]
[384936214,1757628643229,-400.0,0.00027397,7]
[384936216,1757628643238,-1288.52,0.00027397,7]
[384936218,1757628643248,-457.64,0.00027397,7]
[384936220,1757628643257,-504.73544575,0.00027397,7]
[384936222,1757628643267,-400.0,0.00027397,7]
[384936224,1757628643276,-905.14,0.00027397,7]
[384936226,1757628643286,-400.0,0.00027397,7]
[384936228,1757628643295,-400.0,0.00027397,7]
[384936230,1757628643304,-400.0,0.00027397,7]
[384936232,1757628643313,-400.0,0.00027397,7]
[384936234,1757628643323,-400.0,0.00027397,7]
[384936236,1757628643332,-400.0,0.00027397,7]
[384936238,1757628643341,-400.0,0.00027397,7]
[384936240,1757628643353,-1453.74,0.00027397,7]
[384936243,1757628643362,-436.67,0.00027397,7]
[384936245,1757628643372,-1414.36,0.00027397,7]
[384936246,1757628643381,-500.0,0.00027397,2]
[384936249,1757628643390,-500.0,0.00027397,2]
[384936251,1757628643400,-500.0,0.00027397,2]
[384936253,1757628643409,-1100.22,0.00027397,7]
[384936255,1757628643419,-2301.34,0.00027397,7]
[384936257,1757628643428,-500.0,0.00027397,2]
[384936259,1757628643438,-400.0,0.00027397,7]
[384936261,1757628643447,-400.0,0.00027397,7]
[384936263,1757628643456,-400.0,0.00027397,7]
[384936265,1757628643466,-400.0,0.00027397,7]
[384936267,1757628643475,-400.0,0.00027397,7]
[384936269,1757628643484,-400.0,0.00027397,7]
[384936271,1757628643496,-735.21,0.00027397,7]
[384936273,1757628643506,-400.0,0.00027397,7]
[384936275,1757628643516,-400.0,0.00027397,7]
[384936277,1757628643525,-968.37,0.00027397,7]
[384936279,1757628643535,-400.0,0.00027397,7]
[384936281,1757628643545,-400.0,0.00027397,7]
[384936300,1757628643705,-400.0,0.00027397,7]
[384936302,1757628643715,-2137.2,0.00027397,7]
[384936305,1757628643724,-189.48897329,0.00027397,7]
[384936308,1757628643734,-400.0,0.00027397,7]
[384936311,1757628643743,-638.28,0.00027397,7]
[384936313,1757628643752,-400.0,0.00027397,7]
[384936316,1757628643761,-400.0,0.00027397,7]
[384936319,1757628643771,-400.0,0.00027397,7]
[384936321,1757628643781,-1387.24,0.00027397,7]
[384936323,1757628643790,-400.0,0.00027397,7]
[384936325,1757628643800,-908.89,0.00027397,7]
[384936326,1757628643813,-400.0,0.00027397,7]
[384936327,1757628643823,-400.0,0.00027397,7]
[384936328,1757628643832,-400.0,0.00027397,7]
[384936329,1757628643842,-400.0,0.00027397,7]
[384936330,1757628643852,-500.0,0.00027397,7]
[384936331,1757628643862,-400.0,0.00027397,7]
[384936332,1757628643871,-400.0,0.00027397,7]
[384936334,1757628643881,-500.0,0.00027397,7]
[384936335,1757628643891,-400.0,0.00027397,7]
[384936337,1757628643901,-774.22,0.00027397,7]
[384936339,1757628643911,-500.0,0.00027397,7]
[384936341,1757628643920,-400.0,0.00027397,7]
[384936343,1757628643930,-800.48,0.00027397,7]
[384936345,1757628643939,-154.125677,0.00027397,7]
[384936347,1757628643948,-758.89,0.00027397,7]
[384936349,1757628643958,-400.0,0.00027397,7]
[384936351,1757628643967,-594.87,0.00027397,7]
[384936353,1757628643977,-400.0,0.00027397,7]
[384936355,1757628643987,-400.0,0.00027397,7]
[384936357,1757628643996,-845.01,0.00027397,7]
[384936359,1757628644006,-417.04,0.00027397,7]
[384936361,1757628644017,-400.0,0.00027397,7]
[384936363,1757628644027,-400.0,0.00027397,7]
[384936365,1757628644036,-400.0,0.00027397,7]
[384936367,1757628644046,-400.0,0.00027397,7]
[384936369,1757628644056,-400.0,0.00027397,7]
[384936371,1757628644066,-1144.87,0.00027397,7]
[384936373,1757628644076,-154.222947,0.00027397,7]
[384936375,1757628644085,-156.65099,0.00027397,7]
[384936377,1757628644094,-400.0,0.00027397,7]
[384936379,1757628644104,-1256.49,0.00027397,7]
[384936381,1757628644114,-400.0,0.00027397,7]
[384936383,1757628644124,-257.31870474,0.00027397,7]
[384936385,1757628644133,-764.61,0.00027397,7]
[384936387,1757628644142,-426.36,0.00027397,7]
[384936389,1757628644152,-750.79,0.00027397,7]
[384936391,1757628644162,-400.0,0.00027397,7]
[384936393,1757628644171,-400.0,0.00027397,7]
[384936395,1757628644182,-3123.15,0.00027397,7]
[384936397,1757628644191,-1026.57,0.00027397,7]
[384936399,1757628644201,-477.42,0.00027397,7]
[384936401,1757628644210,-903.53,0.00027397,7]
[384936403,1757628644219,-1135.78,0.00027397,7]
[384936405,1757628644228,-400.0,0.00027397,7]
[384936407,1757628644238,-1195.74,0.00027397,7]
[384936409,1757628644247,-729.34,0.00027397,7]
[384936411,1757628644257,-1126.06,0.00027397,7]
[384936414,1757628644266,-400.0,0.00027397,7]
[384936415,1757628644276,-400.0,0.00027397,7]
[384936418,1757628644285,-1205.06,0.00027397,7]
[384936419,1757628644294,-400.0,0.00027397,7]
[384936422,1757628644303,-1537.4,0.00027397,7]
[384936424,1757628644312,-400.0,0.00027397,7]
[384936426,1757628644322,-778.96,0.00027397,7]
[384936428,1757628644332,-400.0,0.00027397,7]
[384936430,1757628644341,-407.85579327,0.00027397,7]
[384936432,1757628644352,-1143.6,0.00027397,7]
[384936434,1757628644361,-500.0,0.00027397,2]
[384936436,1757628644371,-500.0,0.00027397,2]
[384936438,1757628644380,-1016.09,0.00027397,7]
[384936440,1757628644390,-603.73,0.00027397,7]
[384936442,1757628644399,-1291.93,0.00027397,7]
[384936444,1757628644408,-400.0,0.00027397,7]
[384936446,1757628644418,-1965.24,0.00027397,7]
[384936448,1757628644427,-400.0,0.00027397,7]
[384936450,1757628644437,-400.0,0.00027397,7]
[384936452,1757628644446,-2459.78,0.00027397,7]
[384936454,1757628644455,-400.0,0.00027397,7]
[384936456,1757628644464,-400.0,0.00027397,7]
[384936458,1757628644473,-400.0,0.00027397,7]
[384936460,1757628644483,-1997.2,0.00027397,7]
[384936462,1757628644492,-400.0,0.00027397,7]
[384936464,1757628644501,-610.05,0.00027397,7]
[384936466,1757628644509,-1405.4,0.00027397,7]
[384936468,1757628644518,-400.0,0.00027397,7]
[384936470,1757628644527,-400.0,0.00027397,7]
[384936472,1757628644536,-400.0,0.00027397,7]
[384936474,1757628644545,-528.84,0.00027397,7]
[384936476,1757628644555,-400.0,0.00027397,7]
[384936478,1757628644564,-437.68033008,0.00027397,7]
[384936480,1757628644574,-461.67,0.00027397,7]
[384936482,1757628644583,-628.02,0.00027397,7]
[384936484,1757628644592,-400.0,0.00027397,7]
[384936486,1757628644601,-2597.0,0.00027397,7]
[384936488,1757628644611,-774.01,0.00027397,7]
[384936490,1757628644620,-400.0,0.00027397,7]
[384936492,1757628644630,-400.0,0.00027397,7]
[384936494,1757628644639,-400.0,0.00027397,7]
[384936496,1757628644648,-400.0,0.00027397,7]
[384936498,1757628644657,-2727.09,0.00027397,7]
[384936500,1757628644667,-400.0,0.00027397,7]
[384936502,1757628644676,-531.89,0.00027397,7]
[384936504,1757628644686,-1494.31,0.00027397,7]
[384936506,1757628644695,-400.0,0.00027397,7]